fUST/lending_fUST_20260116
["ID","MTS","AMOUNT","RATE_DAILY","PERIOD"]
[402048897,1768497041857,-1501.018246,0.00019178,2]
[402048898,1768497041867,-1501.018246,0.00019178,2]
[402048899,1768497041877,-1501.018246,0.00019178,2]
[402048900,1768497041887,-1501.018246,0.00019178,2]
[402048901,1768497041896,-1501.018246,0.00019178,2]
[402048902,1768497041906,-1501.018246,0.00019178,2]
[402048903,1768497041916,-1501.018246,0.00019178,2]
[402048904,1768497041926,-233.436757,0.000192,7]
[402048905,1768497041935,-1072.770229,0.000192,7]
[402048906,1768497041945,-159.17,0.000192,2]
[402048907,1768497041955,-17859.12,0.000192,2]
[402048908,1768497041964,-3290.72,0.000192,2]
[402048909,1768497041974,-157.97,0.000192,2]
[402048910,1768497041983,-167.84,0.000192,2]
[402048911,1768497041993,-1613.027779,0.00019278,7]
[402048912,1768497042002,-303.10001603,0.00019278,2]
[402048913,1768497042014,-800.0,0.0001929,2]
[402048914,1768497042023,-940.334404,0.000193,7]
[402048915,1768497042033,-5261.70677707,0.000193,7]
[402048916,1768497042043,-355.1,0.00019331,2]
[402048917,1768497042053,-800.0,0.0001946,2]
[402048918,1768497042062,-303.10001603,0.00019467,2]
[402048919,1768497042072,-418.51159533,0.00019604,2]
[402048920,1768497042085,-301.57435523,0.00019656,2]
[402048921,1768497042097,-258.9860714,0.00019662,2]
[402048922,1768497042107,-1000.0,0.00019697,2]
[402048923,1768497042117,-791.0,0.00019697,2]
[402048924,1768497042127,-218.004226,0.00019848,7]
[402048925,1768497042137,-1957.856,0.00019873,2]
[402048926,1768497042147,-250.0,0.00019873,2]
[402048927,1768497042159,-162.380719,0.00019873,2]
[402048928,1768497042169,-250.0,0.00019873,2]
[402048929,1768497042181,-1000.0,0.00019873,2]
[402048930,1768497042191,-250.0,0.00019873,2]
[402048931,1768497042202,-151.0,0.00019873,2]
[402048932,1768497042214,-250.0,0.00019873,2]
[402048933,1768497042224,-1000.0,0.00019873,2]
[402048934,1768497042234,-250.0,0.00019873,2]
[402048935,1768497042244,-151.0,0.00019873,2]
[402048936,1768497042255,-250.0,0.00019873,2]
[402048937,1768497042264,-1000.0,0.00019873,2]
[402048938,1768497042274,-151.0,0.00019873,2]
[402048939,1768497042381,-250.0,0.00019873,2]
[402048940,1768497042391,-250.0,0.00019873,2]
[402048941,1768497042401,-1000.0,0.00019873,2]
[402048942,1768497042410,-151.0,0.00019873,2]
[402048943,1768497042420,-250.0,0.00019873,2]
[402048944,1768497042429,-250.0,0.00019873,2]
[402048945,1768497042438,-1000.0,0.00019873,2]
[402048946,1768497042448,-250.0,0.00019873,2]
[402048947,1768497042457,-250.0,0.00019873,2]
[402048948,1768497042467,-1000.0,0.00019873,2]
[402048949,1768497042477,-273.53456012,0.00019873,2]
[402048950,1768497042487,-250.0,0.00019873,2]
[402048951,1768497042497,-445.202766,0.00019873,2]
[402048952,1768497042506,-1000.0,0.00019873,2]
[402048953,1768497042518,-250.0,0.00019873,2]
[402048954,1768497042527,-1000.0,0.00019873,2]
[402048955,1768497042536,-250.0,0.00019873,2]
[402048956,1768497042546,-1000.0,0.00019873,2]
[402048957,1768497042555,-250.0,0.00019873,2]
[402048958,1768497042566,-30000.0,0.00019873,2]
[402048959,1768497042575,-1000.0,0.00019873,2]
[402048960,1768497042584,-323.29083411,0.00019873,2]
[402048961,1768497042594,-1000.0,0.00019873,2]
[402048962,1768497042603,-151.0,0.00019873,2]
[402048963,1768497042612,-151.0,0.00019873,2]
[402048964,1768497042620,-1000.0,0.00019873,2]
[402048965,1768497042630,-151.0,0.00019873,2]
[402048966,1768497042639,-151.0,0.00019873,2]
[402048967,1768497042648,-1000.0,0.00019873,2]
[402048968,1768497042657,-151.0,0.00019873,2]
[402048969,1768497042666,-151.0,0.00019873,2]
[402048970,1768497042675,-1000.0,0.00019873,2]
[402048971,1768497042685,-151.0,0.00019873,2]
[402048972,1768497042693,-151.0,0.00019873,2]
[402048973,1768497042702,-162.380719,0.00019873,2]
[402048974,1768497042711,-151.0,0.00019873,2]
[402048975,1768497042720,-1000.0,0.00019873,2]
[402048976,1768497042729,-151.0,0.00019873,2]
[402048977,1768497042739,-151.0,0.00019873,2]
[402048978,1768497042748,-168.3888056,0.00019873,2]
[402048979,1768497042758,-242.59349996,0.00019873,2]
[402048980,1768497042768,-1000.0,0.00019873,2]
[402048981,1768497042778,-151.0,0.00019873,2]
[402048982,1768497042788,-174.61919141,0.00019873,2]
[402048983,1768497042797,-151.0,0.00019873,2]
[402048984,1768497042807,-1000.0,0.00019873,2]
[402048985,1768497042816,-151.0,0.00019873,2]
[402048986,1768497042825,-181.08010149,0.00019873,2]
[402048987,1768497042835,-151.0,0.00019873,2]
[402048988,1768497042844,-1000.0,0.00019873,2]
[402048989,1768497042854,-151.0,0.00019873,2]
[402048990,1768497042862,-187.78006525,0.00019873,2]
[402048991,1768497042871,-151.0,0.00019873,2]
[402048992,1768497042880,-151.0,0.00019873,2]
[402048993,1768497042889,-194.72792766,0.00019873,2]
[402048994,1768497042898,-151.0,0.00019873,2]
[402048996,1768497042907,-151.0,0.00019873,2]
[402048998,1768497042917,-201.93286099,0.00019873,2]
[402048999,1768497042926,-151.0,0.00019873,2]
[402049000,1768497042936,-151.0,0.00019873,2]
[402049001,1768497042945,-209.40437684,0.00019873,2]
[402049002,1768497042954,-151.0,0.00019873,2]
[402049003,1768497042964,-151.0,0.00019873,2]
[402049004,1768497042973,-217.15233878,0.00019873,2]
[402049005,1768497042983,-151.0,0.00019873,2]
[402049006,1768497042992,-151.0,0.00019873,2]
[402049007,1768497043001,-225.18697532,0.00019873,2]
[402049008,1768497043010,-151.0,0.00019873,2]
[402049010,1768497043022,-187.96041165,0.00019873,2]
[402049011,1768497043031,-233.51889341,0.00019873,2]
[402049013,1768497043040,-151.0,0.00019873,2]
[402049016,1768497043050,-250.0,0.00019873,2]
[402049019,1768497043059,-242.15909246,0.00019873,2]
[402049022,1768497043070,-151.0,0.00019873,2]
[402049024,1768497043080,-251.11897888,0.00019873,2]
[402049026,1768497043094,-151.0,0.00019873,2]
[402049030,1768497043104,-260.4103811,0.00019873,2]
[402049031,1768497043113,-151.0,0.00019873,2]
[402049034,1768497043123,-270.0455652,0.00019873,2]
[402049037,1768497043134,-151.0,0.00019873,2]
[402049040,1768497043145,-280.03725112,0.00019873,2]
[402049041,1768497043154,-151.0,0.00019873,2]
[402049044,1768497043166,-290.39862941,0.00019873,2]
[402049046,1768497043175,-151.0,0.00019873,2]
[402049048,1768497043185,-301.1433787,0.00019873,2]
[402049050,1768497043194,-2150.738,0.00019873,2]
[402049052,1768497043203,-250.0,0.00019873,2]
[402049054,1768497043214,-250.0,0.00019873,2]
[402049056,1768497043224,-250.0,0.00019873,2]
[402049059,1768497043234,-250.0,0.00019873,2]
[402049061,1768497043245,-250.0,0.00019873,2]
[402049063,1768497043254,-250.0,0.00019873,2]
[402049065,1768497043264,-380.99585983,0.00019873,2]
[402049067,1768497043275,-2000.0,0.00019873,7]
[402049069,1768497043285,-159.17,0.000199,2]
[402049072,1768497043296,-17859.12,0.000199,2]
[402049074,1768497043305,-3290.72,0.000199,2]
[402049076,1768497043315,-157.97,0.000199,2]
[402049078,1768497043324,-2147.0,0.00019919,2]
[402049080,1768497043333,-629.0,0.00019919,2]
[402049081,1768497043342,-1367.0,0.00019919,2]
[402049083,1768497043351,-2030.296672,0.00019928,2]
[402049084,1768497043361,-355.1,0.00019932,2]
[402049085,1768497043370,-315.722482,0.00019947,7]
[402049086,1768497043379,-1638.577305,0.00019947,7]
[402049087,1768497043389,-363951.83833146,0.00019948,2]
[402049089,1768497043398,-475.0,0.0001995,2]
[402049091,1768497043408,-841449.15496114,0.0001995,2]
[402049095,1768497043957,-2893.99,0.0001995,2]
[402049096,1768497044331,-262.90727994,0.0001995,2]
[402049097,1768497044741,-568.54451647,0.0001995,2]
[402049098,1768497044753,-2041.08499773,0.0001995,2]
[402049099,1768497044860,-2141.85924301,0.0001995,2]
[402049100,1768497044872,-660.112334,0.0001995,2]
[402049152,1768497046397,-114064.50952739,0.0001995,2]
[402049154,1768497046409,-1606.14449984,0.0001995,2]
[402049160,1768497046450,-9177.06506789,0.0001995,2]
[402051123,1768497165467,200.0,0.00011,20]
[402051124,1768497311227,679.2,0.00027397,120]
[402051283,1768497940092,999.298191,9.178e-05,2]
[402051289,1768497975464,1031.00581317,0.00024,120]
[402051299,1768498184764,182.59828344,0.00027397,120]
[402051334,1768498232468,-5000.0,9.703e-05,2]
[402051335,1768498232477,-557.0,9.801e-05,2]
[402051336,1768498232487,-253.0302917,9.901e-05,2]
[402051337,1768498232496,-160.0,0.0001,2]
[402051339,1768498232507,-167.423,0.00010026,2]
[402051341,1768498232515,-300.0,0.00010226,2]
[402051342,1768498232525,-300.0,0.00010226,2]
[402051344,1768498232534,-1200.0,0.00010226,2]
[402051346,1768498232543,-500.0,0.00010227,2]
[402051348,1768498232552,-500.0,0.00010227,2]
[402051349,1768498232562,-500.0,0.00010227,2]
[402051350,1768498232571,-500.0,0.00010227,2]
[402051351,1768498232582,-500.0,0.00010227,2]
[402051352,1768498232750,-500.0,0.00010227,2]
[402051353,1768498232769,-500.0,0.00010227,2]
[402051354,1768498232778,-500.0,0.00010227,2]
[402051355,1768498232788,-500.0,0.00010227,2]
[402051356,1768498232797,-500.0,0.00010227,2]
[402051357,1768498232807,-500.0,0.00010227,2]
[402051358,1768498232816,-500.0,0.00010227,2]
[402051359,1768498232825,-500.0,0.00010227,2]
[402051360,1768498232834,-500.0,0.00010227,2]
[402051361,1768498232844,-500.0,0.00010227,2]
[402051362,1768498232853,-500.0,0.00010227,2]
[402051363,1768498232862,-500.0,0.00010227,2]
[402051364,1768498232871,-500.0,0.00010227,2]
[402051365,1768498232879,-500.0,0.00010227,2]
[402051366,1768498232888,-500.0,0.00010227,2]
[402051367,1768498232898,-500.0,0.00010227,2]
[402051368,1768498232907,-500.0,0.00010227,2]
[402051369,1768498232915,-500.0,0.00010227,2]
[402051370,1768498232924,-500.0,0.00010227,2]
[402051371,1768498232933,-500.0,0.00010227,2]
[402051372,1768498232942,-500.0,0.00010227,2]
[402051373,1768498232951,-500.0,0.00010227,2]
[402051374,1768498232960,-500.0,0.00010227,2]
[402051375,1768498232968,-500.0,0.00010227,2]
[402051376,1768498232977,-500.0,0.00010227,2]
[402051377,1768498232987,-500.0,0.00010227,2]
[402051378,1768498232996,-428.8072454,0.00010227,2]
[402051379,1768498233005,-500.0,0.00010227,2]
[402051380,1768498233014,-500.0,0.00010227,2]
[402051381,1768498233023,-500.0,0.00010227,2]
[402051382,1768498233032,-500.0,0.00010227,2]
[402051383,1768498233041,-500.0,0.00010227,2]
[402051384,1768498233051,-500.0,0.00010227,2]
[402051385,1768498233059,-500.0,0.00010227,2]
[402051386,1768498233069,-500.0,0.00010227,2]
[402051387,1768498233078,-500.0,0.00010227,2]
[402051388,1768498233088,-500.0,0.00010227,2]
[402051389,1768498233098,-500.0,0.00010227,2]
[402051390,1768498233107,-500.0,0.00010227,2]
[402051391,1768498233116,-370.96275985,0.00010227,2]
[402051392,1768498233125,-500.0,0.00010227,2]
[402051393,1768498233134,-500.0,0.00010227,2]
[402051394,1768498233144,-500.0,0.00010227,2]
[402051395,1768498233153,-500.0,0.00010227,2]
[402051396,1768498233163,-500.0,0.00010227,2]
[402051397,1768498233173,-500.0,0.00010227,2]
[402051398,1768498233182,-500.0,0.00010227,2]
[402051399,1768498233191,-500.0,0.00010227,2]
[402051400,1768498233200,-500.0,0.00010227,2]
[402051401,1768498233209,-312.41713048,0.00010227,2]
[402051402,1768498233218,-500.0,0.00010227,2]
[402051403,1768498233229,-500.0,0.00010227,2]
[402051404,1768498233238,-500.0,0.00010227,2]
[402051405,1768498233247,-500.0,0.00010227,2]
[402051406,1768498233257,-500.0,0.00010227,2]
[402051407,1768498233266,-500.0,0.00010227,2]
[402051408,1768498233275,-500.0,0.00010227,2]
[402051409,1768498233284,-500.0,0.00010227,2]
[402051410,1768498233295,-500.0,0.00010227,2]
[402051411,1768498233305,-500.0,0.00010227,2]
[402051412,1768498233313,-500.0,0.00010227,2]
[402051413,1768498233323,-500.0,0.00010227,2]
[402051414,1768498233331,-500.0,0.00010227,2]
[402051415,1768498233340,-500.0,0.00010227,2]
[402051416,1768498233349,-550.0,0.00010227,2]
[402051417,1768498233359,-500.0,0.00010227,2]
[402051418,1768498233368,-500.0,0.00010227,2]
[402051419,1768498233377,-300.0,0.00010227,2]
[402051420,1768498233386,-500.0,0.00010227,2]
[402051421,1768498233395,-39472.10435703,0.00010227,2]
[402051422,1768498233404,-6359.55863282,0.00010228,2]
[402051423,1768498233413,-313.89475739,0.00010228,2]
[402051424,1768498233423,-989.25,0.00010229,2]
[402051425,1768498233433,-500.0,0.00010229,2]
[402051426,1768498233443,-61365.85110527,0.0001023,2]
[402051427,1768498233819,-18864.06416054,0.0001023,2]
[402051436,1768498238693,-919770.08473419,0.0001023,2]
[402051437,1768498238703,-4385.72914432,0.00010403,2]
[402051438,1768498238713,-500.0,0.00010503,2]
[402051439,1768498238723,-300.0,0.00010537,2]
[402051440,1768498238732,-300.0,0.00010537,2]
[402051441,1768498238742,-300.0,0.00010537,2]
[402051442,1768498238751,-300.0,0.00010537,2]
[402051443,1768498238760,-300.0,0.00010537,2]
[402051444,1768498238770,-300.0,0.00010537,2]
[402051446,1768498238780,-300.0,0.00010537,2]
[402051448,1768498238790,-300.0,0.00010537,2]
[402051450,1768498238800,-300.0,0.00010537,2]
[402051452,1768498238809,-300.0,0.00010537,2]
[402051454,1768498238820,-300.0,0.00010537,2]
[402051456,1768498238831,-300.0,0.00010537,2]
[402051458,1768498238841,-300.0,0.00010537,2]
[402051460,1768498238852,-300.0,0.00010537,2]
[402051462,1768498238862,-300.0,0.00010537,2]
[402051464,1768498238872,-600.0,0.00010537,2]
[402051466,1768498238882,-500.0,0.00010777,2]
[402051468,1768498238892,-152.97,0.00010813,2]
[402051470,1768498238901,-500.0,0.00010844,2]
[402051472,1768498238911,-678.0,0.00010844,2]
[402051474,1768498238920,-500.0,0.00010844,2]
[402051476,1768498238931,-500.0,0.00010844,2]
[402051479,1768498238941,-500.0,0.00010844,2]
[402051481,1768498238952,-500.0,0.00010844,2]
[402051483,1768498238962,-500.0,0.00010844,2]
[402051485,1768498238972,-200.0,0.00010844,2]
[402051487,1768498238981,-500.0,0.00010844,2]
[402051489,1768498238992,-500.0,0.00010844,2]
[402051491,1768498239002,-500.0,0.00010981,2]
[402051493,1768498239012,-678.0,0.00010981,2]
[402051495,1768498239023,-500.0,0.00010981,2]
[402051497,1768498239034,-500.0,0.00010981,2]
[402051499,1768498239044,-500.0,0.00010981,2]
[402051501,1768498239054,-500.0,0.00010981,2]
[402051503,1768498239064,-500.0,0.00010981,2]
[402051505,1768498239074,-500.0,0.00010981,2]
[402051507,1768498239085,-500.0,0.00010981,2]
[402051509,1768498239097,-216.87484314,0.00010981,2]
[402051511,1768498239108,-318.0,0.00010998,2]
[402051513,1768498239122,-151.0,0.00011,2]
[402051515,1768498239131,-151.0,0.00011,2]
[402051517,1768498239140,-500.0,0.00011051,2]
[402051519,1768498239150,-2353.33300451,0.00011075,2]
[402051521,1768498239160,-500.0,0.00011118,2]
[402051523,1768498239169,-678.0,0.00011118,2]
[402051525,1768498239178,-500.0,0.00011118,2]
[402051527,1768498239188,-500.0,0.00011118,2]
[402051529,1768498239198,-500.0,0.00011118,2]
[402051531,1768498239207,-500.0,0.00011118,2]
[402051533,1768498239217,-500.0,0.00011118,2]
[402051536,1768498239231,-500.0,0.00011118,2]
[402051537,1768498239240,-174.82,0.00011213,2]
[402051540,1768498239250,-999.0,0.00011223,2]
[402051542,1768498239260,-420.0,0.00011246,2]
[402051544,1768498239270,-420.0,0.00011246,2]
[402051546,1768498239279,-1680.0,0.00011249,2]
[402051548,1768498239288,-500.0,0.00011255,2]
[402051550,1768498239297,-678.0,0.00011255,2]
[402051551,1768498239307,-500.0,0.00011255,2]
[402051553,1768498239317,-482.49936425,0.00011255,2]
[402051556,1768498239327,-400.39390306,0.00011255,2]
[402051558,1768498239336,-500.0,0.00011255,2]
[402051559,1768498239345,-500.0,0.00011255,2]
[402051561,1768498239355,-643.08615077,0.00011255,2]
[402051564,1768498239365,-163.51793902,0.00011255,2]
[402051565,1768498239374,-500.0,0.00011325,2]
[402051568,1768498239384,-4385.72914429,0.00011339,2]
[402051570,1768498239394,-500.0,0.00011392,2]
[402051572,1768498239403,-200.0,0.00011392,2]
[402051574,1768498239413,-271.43018214,0.00011392,2]
[402051576,1768498239425,-678.0,0.00011392,2]
[402051578,1768498239435,-500.0,0.00011392,2]
[402051580,1768498239444,-500.0,0.00011392,2]
[402051582,1768498239453,-500.0,0.00011392,2]
[402051584,1768498239463,-194.43910051,0.00011529,2]
[402051586,1768498239472,-678.0,0.00011529,2]
[402051587,1768498239482,-500.0,0.00011529,2]
[402051590,1768498239493,-500.0,0.00011529,2]
[402051592,1768498239503,-500.0,0.00011529,2]
[402051594,1768498239512,-720.0,0.00011591,2]
[402051596,1768498239521,-490.75948719,0.00011599,2]
[402051598,1768498239531,-196.67,0.00011614,2]
[402051600,1768498239540,-678.0,0.00011666,2]
[402051602,1768498239550,-500.0,0.00011666,2]
[402051603,1768498239559,-500.0,0.00011666,2]
[402051605,1768498239568,-500.0,0.00011666,2]
[402051607,1768498239577,-678.0,0.00011803,2]
[402051609,1768498239587,-554.02588884,0.00011803,2]
[402051610,1768498239596,-500.0,0.00011803,2]
[402051612,1768498239605,-500.0,0.00011803,2]
[402051614,1768498239615,-298.57574421,0.00011901,2]
[402051615,1768498239624,-678.0,0.0001194,2]
[402051617,1768498239634,-500.0,0.0001194,2]
[402051619,1768498239643,-288.50578496,0.0001194,2]
[402051621,1768498239653,-218.52,0.00012014,2]
[402051622,1768498239663,-678.0,0.00012077,2]
[402051624,1768498239672,-500.0,0.00012077,2]
[402051626,1768498239681,-678.0,0.00012214,2]
[402051627,1768498239690,-500.0,0.00012214,2]
[402051628,1768498239700,-4385.72914429,0.00012275,2]
[402051629,1768498239709,-203.16,0.00012329,2]
[402051630,1768498239718,-500.0,0.00012329,2]
[402051631,1768498239728,-500.0,0.00012329,2]
[402051632,1768498239738,-500.0,0.00012329,2]
[402051633,1768498239748,-500.0,0.00012329,2]
[402051634,1768498239757,-473.96308416,0.00012329,2]
[402051635,1768498239842,-500.0,0.00012329,2]
[402051636,1768498239852,-500.0,0.00012329,2]
[402051637,1768498239862,-500.0,0.00012329,2]
[402051638,1768498239872,-500.0,0.00012329,2]
[402051639,1768498239882,-500.0,0.00012329,2]
[402051640,1768498239891,-413.82845662,0.00012342,2]
[402051641,1768498239901,-678.0,0.00012351,2]
[402051642,1768498239910,-500.0,0.00012351,2]
[402051643,1768498239919,-587.0,0.00012368,2]
[402051644,1768498239929,-2004.0,0.00012374,2]
[402051645,1768498239938,-1543.05729361,0.00012423,2]
[402051646,1768498239948,-152.91697779,0.00012423,2]
[402051647,1768498239957,-678.0,0.00012488,2]
[402051648,1768498239967,-500.0,0.00012488,2]
[402051649,1768498239976,-8134.19335057,0.000125,2]
[402051650,1768498239985,-678.0,0.00012625,2]
[402051651,1768498239995,-500.0,0.00012625,2]
[402051652,1768498240005,-864.0,0.0001275,2]
[402051653,1768498240014,-678.0,0.00012762,2]
[402051654,1768498240023,-500.0,0.00012762,2]
[402051655,1768498240032,-797.9717371,0.00012878,2]
[402051656,1768498240041,-678.0,0.00012899,2]
[402051657,1768498240050,-500.0,0.00012899,2]
[402051658,1768498240060,-678.0,0.00013036,2]
[402051659,1768498240069,-529.76450099,0.00013036,2]
[402051660,1768498240079,-678.0,0.00013173,2]
[402051661,1768498240088,-4385.72914429,0.00013211,2]
[402051662,1768498240098,-500.0,0.00013273,2]
[402051663,1768498240108,-498.42292613,0.00013273,2]
[402051664,1768498240118,-500.0,0.00013273,2]
[402051665,1768498240127,-500.0,0.00013273,2]
[402051666,1768498240136,-500.0,0.00013273,2]
[402051668,1768498240145,-500.0,0.00013273,2]
[402051669,1768498240154,-500.0,0.00013273,2]
[402051670,1768498240163,-500.0,0.00013273,2]
[402051671,1768498240172,-500.0,0.00013273,2]
[402051672,1768498240182,-500.0,0.00013273,2]
[402051673,1768498240191,-500.0,0.00013273,2]
[402051674,1768498240200,-500.0,0.00013273,2]
[402051675,1768498240209,-500.0,0.00013273,2]
[402051676,1768498240218,-500.0,0.00013273,2]
[402051677,1768498240227,-500.0,0.00013273,2]
[402051678,1768498240238,-500.0,0.00013273,2]
[402051679,1768498240248,-500.0,0.00013273,2]
[402051680,1768498240257,-500.98976618,0.00013273,2]
[402051681,1768498240266,-500.0,0.00013273,2]
[402051682,1768498240275,-500.0,0.00013273,2]
[402051684,1768498240284,-678.0,0.0001331,2]
[402051686,1768498240293,-250.0,0.00013408,2]
[402051688,1768498240303,-678.0,0.00013447,2]
[402051690,1768498240313,-678.0,0.00013584,2]
[402051691,1768498240322,-823.0,0.00013602,2]
[402051692,1768498240332,-300.0,0.00013673,2]
[402051693,1768498240341,-500.0,0.00013698,2]
[402051694,1768498240351,-500.0,0.00013698,2]
[402051695,1768498240360,-500.0,0.00013698,2]
[402051697,1768498240369,-500.0,0.00013698,2]
[402051698,1768498240379,-500.0,0.00013698,2]
[402051699,1768498240389,-500.0,0.00013698,2]
[402051700,1768498240398,-500.0,0.00013698,2]
[402051701,1768498240407,-500.0,0.00013698,2]
[402051702,1768498240416,-500.0,0.00013698,2]
[402051703,1768498240428,-500.0,0.00013698,2]
[402051704,1768498240439,-500.0,0.00013698,2]
[402051705,1768498240449,-500.0,0.00013698,2]
[402051706,1768498240458,-500.0,0.00013698,2]
[402051707,1768498240467,-500.0,0.00013698,2]
[402051708,1768498240478,-400.99242796,0.00013698,2]
[402051709,1768498240488,-1203.44,0.00013698,2]
[402051710,1768498240498,-1203.44,0.00013698,2]
[402051711,1768498240510,-1203.44,0.00013698,2]
[402051712,1768498240519,-1203.44,0.00013698,2]
[402051714,1768498240528,-1203.44,0.00013698,2]
[402051715,1768498240537,-1203.44,0.00013698,2]
[402051716,1768498240547,-1203.44,0.00013698,2]
[402051717,1768498240556,-1203.44,0.00013698,2]
[402051718,1768498240565,-1203.44,0.00013698,2]
[402051719,1768498240574,-1203.44,0.00013698,2]
[402051721,1768498240584,-1203.44,0.00013698,2]
[402051723,1768498240594,-1203.44,0.00013698,2]
[402051725,1768498240603,-1203.44,0.00013698,2]
[402051726,1768498240612,-1203.44,0.00013698,2]
[402051727,1768498240621,-1203.44,0.00013698,2]
[402051728,1768498240631,-1203.44,0.00013698,2]
[402051730,1768498240641,-1203.44,0.00013698,2]
[402051731,1768498240652,-1203.44,0.00013698,2]
[402051732,1768498240661,-1203.44,0.00013698,2]
[402051733,1768498240670,-1203.44,0.00013698,2]
[402051734,1768498240679,-1203.44,0.00013698,2]
[402051735,1768498240688,-1203.44,0.00013698,2]
[402051737,1768498240698,-1203.44,0.00013698,2]
[402051739,1768498240707,-1203.6655421,0.00013698,2]
[402051741,1768498240719,-500.0,0.00013698,2]
[402051743,1768498240732,-500.0,0.00013698,2]
[402051744,1768498240742,-500.0,0.00013698,2]
[402051746,1768498240752,-499.5497095,0.00013698,2]
[402051748,1768498240762,-849.26,0.00013698,2]
[402051749,1768498240771,-849.26,0.00013698,2]
[402051750,1768498240780,-849.26,0.00013698,2]
[402051751,1768498240789,-849.26,0.00013698,2]
[402051752,1768498240799,-849.26,0.00013698,2]
[402051753,1768498240809,-849.26,0.00013698,2]
[402051754,1768498240818,-849.26,0.00013698,2]
[402051755,1768498240827,-849.26,0.00013698,2]
[402051756,1768498240837,-849.26,0.00013698,2]
[402051757,1768498240846,-849.26,0.00013698,2]
[402051758,1768498240855,-849.26,0.00013698,2]
[402051759,1768498240864,-849.26,0.00013698,2]
[402051760,1768498240873,-849.26,0.00013698,2]
[402051761,1768498240882,-849.26,0.00013698,2]
[402051762,1768498240891,-849.26,0.00013698,2]
[402051763,1768498240900,-849.26,0.00013698,2]
[402051764,1768498240909,-849.26,0.00013698,2]
[402051765,1768498240918,-849.26,0.00013698,2]
[402051766,1768498240928,-849.26,0.00013698,2]
[402051767,1768498240937,-849.26,0.00013698,2]
[402051768,1768498240946,-849.26,0.00013698,2]
[402051769,1768498240956,-849.26,0.00013698,2]
[402051770,1768498240966,-849.26,0.00013698,2]
[402051771,1768498240976,-849.38245362,0.00013698,2]
[402051772,1768498240985,-500.0,0.00013698,2]
[402051773,1768498240994,-500.0,0.00013698,2]
[402051774,1768498241004,-500.0,0.00013698,2]
[402051775,1768498241013,-500.0,0.00013698,2]
[402051776,1768498241022,-213.19502493,0.00013698,2]
[402051777,1768498241031,-1399.625495,0.00013699,2]
[402051778,1768498241039,-500.0,0.00013699,2]
[402051779,1768498241048,-500.0,0.00013699,2]
[402051780,1768498241058,-500.0,0.00013699,2]
[402051781,1768498241067,-501.50533149,0.00013699,2]
[402051782,1768498241076,-500.0,0.00013699,2]
[402051783,1768498241085,-622.77582061,0.00013699,2]
[402051784,1768498241095,-500.0,0.00013699,2]
[402051785,1768498241104,-500.0,0.00013699,2]
[402051786,1768498241113,-500.0,0.00013699,2]
[402051787,1768498241122,-500.0,0.00013699,2]
[402051788,1768498241131,-500.0,0.00013699,2]
[402051789,1768498241140,-500.0,0.00013699,2]